bitfinex/quotes_SOLUSD_20250424
["timestamp","ask_amount","ask_price","bid_price","bid_amount"]
[1745483866433,1.7100193,146.23,146.21,23.05788339]
[1745483866836,1.7100193,146.23,146.2,23.05788339]
[1745483867223,1.7100193,146.23,146.16,24.64498339]
[1745483867537,24.76790269,146.23,146.18,23.05788339]
[1745483867726,23.05788339,146.22,146.17,23.05788339]
[1745483867928,1.71020313,146.21,146.17,23.05788339]
[1745483868240,1.71020313,146.21,146.18,23.05788339]
[1745483868843,1.71012989,146.22,146.18,23.05788339]
[1745483869227,1.71013055,146.23,146.21,23.05788339]
[1745483869533,1.71013055,146.24,146.21,23.05788339]
[1745483870122,23.05788339,146.23,146.16,1.5871]
[1745483870436,23.05788339,146.2,146.12,8.1664]
[1745483870631,1.71053564,146.19,146.16,23.05788339]
[1745483871230,1.71053564,146.19,146.15,23.05788339]
[1745483871625,24.76841903,146.19,146.14,23.05788339]
[1745483871831,23.05788339,146.18,146.13,23.05788339]
[1745483872028,1.71065741,146.17,146.13,23.05788339]
[1745483872244,1.71065741,146.17,146.14,23.05788339]
[1745483872447,23.05788339,146.19,146.14,23.05788339]
[1745483872448,1.71051939,146.18,146.14,23.05788339]
[1745483872743,1.71051939,146.18,146.15,23.05788339]
[1745483873036,1.71051939,146.18,146.14,23.05788339]
[1745483874441,23.52,146.2,146.17,23.05788339]
[1745483874617,23.52,146.2,146.18,23.05788339]
[1745483875532,23.52,146.2,146.19,23.05788339]
[1745483877117,23.52,146.2,146.18,23.05788339]
[1745483877343,23.52,146.26,146.19,23.05788339]
[1745483877546,1.709666,146.25,146.19,23.05788339]
[1745483877722,1.709666,146.25,146.22,23.05788339]
[1745483877928,25.22965468,146.26,146.22,23.05788339]
[1745483878129,25.22965468,146.26,146.23,23.05788339]
[1745483878645,25.22965468,146.26,146.24,23.05788339]
[1745483878848,23.52,146.26,146.24,23.05788339]
[1745483879341,23.52,146.26,146.25,23.05788339]
[1745483879724,23.52,146.26,146.2,1.5299]
[1745483879929,23.52,146.26,146.24,23.05788339]
[1745483880130,23.52,146.26,146.23,23.05788339]
[1745483880531,1.70952769,146.25,146.2,1.5299]
[1745483880848,1.70952769,146.25,146.22,23.05788339]
[1745483881148,25.22961582,146.26,146.23,23.05788339]
[1745483881355,23.52,146.26,146.23,23.05788339]
[1745483881550,1.70947093,146.25,146.2,1.5299]
[1745483881724,1.70947093,146.25,146.21,23.05788339]
[1745483881925,23.05788339,146.24,146.19,23.05788339]
[1745483882145,24.76795673,146.23,146.19,23.05788339]
[1745483882337,1.71007334,146.23,146.2,23.05788339]
[1745483882554,1.70996091,146.24,146.21,23.05788339]
[1745483882754,1.70996091,146.24,146.22,23.05788339]
[1745483883255,1.70996091,146.24,146.21,23.05788339]
[1745483883564,27.70975294,146.25,146.21,23.05788339]
[1745483883727,50.76763633,146.25,146.17,18.64964886]
[1745483883931,0.063,146.27,146.23,23.05788339]
[1745483884153,0.063,146.27,146.26,23.05788339]
[1745483884355,0.063,146.27,146.21,1.36741585]
[1745483884356,0.063,146.27,146.21,18.64964886]
[1745483884532,23.12088339,146.27,146.23,23.05788339]
[1745483884745,1.70959614,146.26,146.22,23.05788339]
[1745483885249,1.70959614,146.26,146.19,18.64964886]
[1745483885448,23.12088339,146.27,146.19,18.64964886]
[1745483885449,0.063,146.27,146.25,23.05788339]
[1745483885644,0.063,146.27,146.26,23.05788339]
[1745483885843,23.12088339,146.27,146.16,24.70358339]
[1745483886048,23.05788339,146.24,146.19,23.05788339]
[1745483886362,1.70988926,146.25,146.17,18.64964886]
[1745483886545,24.76777265,146.25,146.2,23.05788339]
[1745483886743,1.70988926,146.25,146.21,23.05788339]
[1745483887057,1.70988926,146.25,146.23,23.05788339]
[1745483887442,1.70974596,146.24,146.21,23.05788339]
[1745483887625,24.76772726,146.26,146.21,23.05788339]
[1745483887832,23.05788339,146.25,146.2,23.05788339]
[1745483888032,1.70992041,146.24,146.21,23.05788339]
[1745483888342,1.70972308,146.25,146.21,23.05788339]
[1745483889132,1.70972308,146.25,146.23,23.05788339]
[1745483889437,1.70958046,146.26,146.23,23.05788339]
[1745483889659,23.823,146.27,146.24,23.05788339]
[1745483889855,48.59033312,146.27,146.17,18.64964886]
[1745483890052,25.53244973,146.27,146.23,23.05788339]
[1745483890232,25.53244973,146.27,146.24,23.05788339]
[1745483890437,25.53244973,146.27,146.18,1.36768268]
[1745483890739,23.823,146.27,146.25,23.05788339]
[1745483891138,23.823,146.27,146.26,23.05788339]
[1745483892543,0.063,146.27,146.26,23.05788339]
[1745483893249,0.063,146.27,146.26,41.70753225]
[1745483893562,0.063,146.27,146.26,23.05788339]
[1745483894869,0.063,146.27,146.26,41.70753225]
[1745483895069,0.063,146.28,146.26,41.70753225]
[1745483895070,0.063,146.28,146.27,18.64964886]
[1745483895295,0.063,146.32,146.31,1.6629]
[1745483895442,0.063,146.32,146.31,70.73703188]
[1745483896089,0.063,146.35,146.32,18.64964886]
[1745483896270,0.063,146.35,146.34,23.05788339]
[1745483896767,0.063,146.35,146.34,49.05788339]
[1745483897170,0.063,146.35,146.34,26.0]
[1745483897350,0.063,146.35,146.34,49.05788339]
[1745483897547,1.77084041,146.41,146.34,89.2095093]
[1745483897769,0.063,146.41,146.4,23.05788339]
[1745483898083,30.063,146.41,146.4,23.05788339]
[1745483899164,0.063,146.44,146.4,23.05788339]
[1745483899366,0.063,146.44,146.43,23.05788339]
[1745483899591,30.063,146.44,146.43,23.05788339]
[1745483900077,0.063,146.44,146.43,23.05788339]
[1745483900570,0.063,146.44,146.39,27.5129]
[1745483900782,0.063,146.44,146.41,23.05788339]
[1745483901253,0.063,146.44,146.43,23.05788339]
[1745483903782,0.063,146.44,146.43,71.5946173]
[1745483904153,0.063,146.44,146.43,97.5946173]
[1745483905576,0.063,146.44,146.43,98.95999498]
[1745483905781,0.063,146.44,146.43,97.5946173]
[1745483906276,0.063,146.44,146.43,72.11576678]
[1745483906660,0.063,146.44,146.43,49.05788339]
[1745483906855,0.063,146.44,146.43,23.05788339]
[1745483909192,0.063,146.44,146.43,72.96013981]
[1745483910766,0.063,146.44,146.43,71.5946173]
[1745483911679,0.063,146.44,146.43,23.05788339]
[1745483912393,0.063,146.44,146.4,18.64964886]
[1745483912394,0.063,146.44,146.37,23.05788339]
[1745483912587,0.063,146.44,146.43,23.05788339]
[1745483912971,1.77026811,146.44,146.37,23.05788339]
[1745483913172,0.063,146.44,146.37,23.05788339]
[1745483913669,0.063,146.44,146.42,23.05788339]
[1745483913870,0.063,146.44,146.43,23.05788339]
[1745483914764,0.063,146.44,146.37,31.2556053]
[1745483914995,1.77014853,146.44,146.37,23.05788339]
[1745483915299,1.77014853,146.44,146.41,23.05788339]
[1745483915511,1.77014853,146.44,146.37,23.05788339]
[1745483915683,1.77014853,146.44,146.4,23.05788339]
[1745483915884,24.82803192,146.44,146.39,23.05788339]
[1745483916197,23.05788339,146.43,146.35,1.6007]
[1745483916387,1.70788186,146.42,146.35,1.6007]
[1745483916590,1.70788186,146.42,146.38,23.05788339]
[1745483917293,24.76576525,146.42,146.37,23.05788339]
[1745483917680,24.76576525,146.42,146.33,26.0]
[1745483917882,23.05788339,146.41,146.36,23.05788339]
[1745483918086,1.70800827,146.4,146.37,23.05788339]
[1745483918484,1.70800827,146.4,146.33,26.0]
[1745483918790,1.70800827,146.4,146.36,23.05788339]
[1745483918970,1.70800827,146.4,146.37,23.05788339]
[1745483919167,1.70793377,146.41,146.38,23.05788339]
[1745483919667,1.70793377,146.41,146.39,23.05788339]
[1745483919888,1.7077218,146.42,146.4,23.05788339]
[1745483920077,1.77058249,146.44,146.41,23.05788339]
[1745483920274,1.77058249,146.44,146.42,23.05788339]
[1745483921103,0.063,146.44,146.4,26.0]
[1745483921288,0.063,146.44,146.43,23.05788339]
[1745483922613,0.063,146.44,146.42,23.05788339]
[1745483922806,0.063,146.44,146.41,23.05788339]
[1745483923308,0.063,146.44,146.42,23.05788339]
[1745483924285,0.063,146.44,146.43,23.05788339]
[1745483925495,0.063,146.44,146.43,46.11576678]
[1745483925879,0.063,146.44,146.43,72.96011479]
[1745483926485,0.03,146.5,146.46,26.0]
[1745483926691,0.03,146.5,146.49,23.05788339]
[1745483928307,0.03,146.5,146.49,49.05788339]
[1745483928522,0.063,146.52,146.49,71.59182017]
[1745483928807,0.063,146.52,146.51,90.76541564]
[1745483929888,0.063,146.52,146.51,97.5908883]
[1745483930814,23.763,146.58,146.55,26.0]
[1745483931019,23.763,146.58,146.57,23.05788339]
[1745483933715,0.063,146.58,146.57,23.05788339]
[1745483935522,0.063,146.58,146.55,28.99691016]
[1745483935725,0.063,146.58,146.57,23.05788339]
[1745483935923,0.063,146.58,146.55,1.36431016]
[1745483936227,0.063,146.58,146.52,18.64964886]
[1745483936228,1.76871782,146.58,146.51,23.05788339]
[1745483936528,29.17858339,146.57,146.53,23.05788339]
[1745483936833,1.70614311,146.56,146.54,23.05788339]
[1745483937028,1.70614311,146.56,146.55,23.05788339]
[1745483937332,7.82677577,146.57,146.49,1.6123]
[1745483937621,7.82677577,146.57,146.53,23.05788339]
[1745483937807,7.82677577,146.57,146.54,23.05788339]
[1745483938009,30.72677577,146.57,146.54,23.05788339]
[1745483938605,30.72677577,146.57,146.55,23.05788339]
[1745483938925,24.60607577,146.57,146.55,23.05788339]
[1745483939921,24.60607577,146.57,146.54,23.05788339]
[1745483941221,24.60607577,146.57,146.53,23.05788339]
[1745483941420,23.05788339,146.55,146.46,26.0]
[1745483941632,24.60607577,146.57,146.45,1.5116]
[1745483941633,23.05788339,146.53,146.45,1.5116]
[1745483941928,1.70671776,146.52,146.48,23.05788339]
[1745483942106,1.70671776,146.52,146.49,23.05788339]
[1745483942441,1.7065562,146.54,146.51,46.11576678]
[1745483942613,1.70614255,146.56,146.53,23.05788339]
[1745483942798,1.70614255,146.56,146.48,26.0]
[1745483942994,23.05788339,146.53,146.48,23.05788339]
[1745483943200,1.70675403,146.52,146.48,23.05788339]
[1745483943429,1.70675403,146.52,146.49,23.05788339]
[1745483943622,1.70675403,146.52,146.47,23.05788339]
[1745483943623,24.76463742,146.52,146.47,23.05788339]
[1745483943940,23.05788339,146.49,146.44,23.05788339]
[1745483944111,1.70712685,146.48,146.44,23.05788339]
[1745483944514,1.70712685,146.48,146.38,14.76706285]
[1745483944835,24.76501024,146.48,146.44,23.05788339]
[1745483945007,1.70712685,146.48,146.44,23.05788339]
[1745483945413,1.70712685,146.48,146.45,23.05788339]
[1745483945811,24.76501024,146.48,146.39,44.64964886]
[1745483946006,24.76501024,146.48,146.44,23.05788339]
[1745483946440,23.05788339,146.46,146.38,1.586]
[1745483946644,1.7075692,146.45,146.41,23.05788339]
[1745483947507,1.70752001,146.48,146.41,23.05788339]
[1745483947708,23.05788339,146.46,146.41,23.05788339]
[1745483947942,1.70753532,146.45,146.41,23.05788339]
[1745483948512,1.70753532,146.45,146.38,1.649]
[1745483948808,1.70736099,146.48,146.44,23.05788339]
[1745483949245,24.76524438,146.48,146.38,20.29864886]
[1745483949411,1.70736099,146.48,146.44,23.05788339]
[1745483950119,1.70736099,146.48,146.45,23.05788339]
[1745483951446,23.05788339,146.47,146.38,1.649]
[1745483951619,24.76541733,146.46,146.41,23.05788339]
[1745483951821,1.70753394,146.46,146.42,23.05788339]
[1745483952023,23.05788339,146.47,146.42,23.05788339]
[1745483952232,1.70741203,146.46,146.42,23.05788339]
[1745483952542,24.76529542,146.46,146.42,23.05788339]
[1745483952739,24.76529542,146.46,146.38,1.649]
[1745483953051,23.05788339,146.42,146.38,0.063]
[1745483953219,1.70791497,146.41,146.38,0.063]
[1745483953742,45.97788339,146.42,146.38,0.063]
[1745483953939,0.57719372,146.41,146.38,0.063]
[1745483954140,0.57719372,146.41,146.38,23.12088339]
[1745483954936,0.57719372,146.41,146.38,0.063]
[1745483955237,0.57719372,146.41,146.38,23.12088339]
[1745483955639,22.92,146.42,146.4,23.05788339]
[1745483956163,22.92,146.42,146.41,23.05788339]
[1745483956551,22.92,146.42,146.38,0.063]
[1745483956751,0.57719372,146.41,146.38,0.063]
[1745483957251,0.57719372,146.41,146.39,23.05788339]
[1745483957442,0.57719372,146.41,146.38,0.063]
[1745483957641,0.57719372,146.41,146.38,23.12088339]
[1745483957951,23.05788339,146.4,146.38,0.063]
[1745483958150,0.57719372,146.39,146.38,0.063]
[1745483958753,23.63507711,146.39,146.38,0.063]
[1745483959160,0.57719372,146.39,146.32,18.07895839]
[1745483959487,23.05788339,146.39,146.34,23.05788339]
[1745483959655,0.57719372,146.38,146.34,23.05788339]
[1745483959839,0.57719372,146.38,146.35,23.05788339]
[1745483960954,23.05788339,146.38,146.3,1.6664]
[1745483961144,0.57719372,146.37,146.34,23.05788339]
[1745483961843,0.57719372,146.38,146.35,23.05788339]
[1745483962045,0.57719372,146.38,146.36,23.05788339]
[1745483962349,0.57719372,146.39,146.37,23.05788339]
[1745483962536,0.57719372,146.39,146.31,18.64964886]
[1745483962736,0.57719372,146.39,146.37,23.05788339]
[1745483963157,0.57719372,146.39,146.32,32.83426471]
[1745483963360,0.57719372,146.4,146.37,23.05788339]
[1745483963759,0.57719372,146.4,146.32,26.0]
[1745483964253,0.57719372,146.4,146.36,23.05788339]
[1745483965678,23.63507711,146.4,146.36,23.05788339]
[1745483965984,23.05788339,146.38,146.32,26.0]
[1745483966152,0.57719372,146.37,146.34,23.05788339]
[1745483966353,0.57719372,146.37,146.35,23.05788339]
[1745483966581,0.57719372,146.39,146.35,23.05788339]
[1745483966885,23.05788339,146.38,146.3,50.72428339]
[1745483967091,0.57719372,146.37,146.33,23.05788339]
[1745483967264,23.63507711,146.37,146.33,23.05788339]
[1745483967462,0.57719372,146.37,146.3,50.72428339]
[1745483967758,0.57719372,146.37,146.33,23.05788339]
[1745483968093,23.05788339,146.36,146.31,23.05788339]
[1745483968264,23.63507711,146.35,146.3,23.05788339]
[1745483968459,23.05788339,146.34,146.3,23.05788339]
[1745483968663,0.57719372,146.33,146.29,0.063]
[1745483968876,23.05788339,146.31,146.29,0.063]
[1745483969074,23.63507711,146.3,146.29,0.063]
[1745483969891,0.57719372,146.3,146.29,0.063]
[1745483970202,23.05788339,146.3,146.29,0.063]
[1745483970379,23.05788339,146.31,146.29,0.063]
[1745483970576,50.67314886,146.33,146.29,0.063]
[1745483970577,0.57719372,146.3,146.29,0.063]
[1745483970778,0.57719372,146.32,146.29,0.063]
[1745483971069,23.05788339,146.31,146.29,0.063]
[1745483971276,23.63507711,146.3,146.29,0.063]
[1745483972474,42.28472597,146.3,146.29,0.063]
[1745483973772,19.22684258,146.3,146.29,0.063]
[1745483974599,42.28472597,146.3,146.29,0.063]
[1745483976262,65.34260936,146.3,146.29,0.063]
[1745483978779,47.75513225,146.29,146.28,0.063]
[1745483982294,73.75513225,146.29,146.28,0.063]
[1745483983387,55.10548339,146.29,146.28,0.063]
[1745483983593,49.63507711,146.29,146.28,0.063]
[1745483984098,70.45507711,146.29,146.28,0.063]
[1745483984594,0.57719372,146.29,146.28,0.063]
[1745483985798,19.22684258,146.29,146.28,0.063]
[1745483985994,0.57719372,146.29,146.28,0.063]
[1745483993983,14.97690067,146.29,146.28,0.063]
[1745483995614,0.57719372,146.29,146.28,0.063]
[1745483996412,14.97690067,146.29,146.28,0.063]
[1745483997423,33.62654953,146.29,146.28,0.063]
[1745483998920,21.73220586,146.29,146.28,0.063]
[1745483999119,36.13191281,146.29,146.28,0.063]
[1745483999501,17.48226395,146.29,146.28,0.063]
[1745483999699,3.082557,146.29,146.28,0.063]
[1745483999913,0.57719372,146.29,146.28,0.063]
[1745484000114,14.97690067,146.29,146.28,0.063]
[1745484001230,0.57719372,146.29,146.28,0.063]
[1745484006426,20.82,146.3,146.28,14.46270695]
[1745484006726,20.82,146.3,146.29,14.39970695]
[1745484007521,20.82,146.3,146.28,1.608]
[1745484007731,20.82,146.3,146.29,14.39970695]
[1745484008241,20.82,146.3,146.28,0.063]
[1745484008532,0.57719372,146.29,146.28,0.063]
[1745484008949,59.62654953,146.29,146.28,0.063]
[1745484009313,62.14442449,146.29,146.28,0.063]
[1745484010133,47.74471754,146.29,146.28,0.063]
[1745484010331,62.14442449,146.29,146.28,0.063]
[1745484013545,44.64964886,146.27,146.26,0.063]
[1745484013759,59.04935581,146.27,146.26,0.063]
[1745484013926,36.14442449,146.27,146.26,0.063]
[1745484015050,62.14442449,146.27,146.26,0.063]
[1745484016560,36.14442449,146.27,146.26,0.063]
[1745484017942,47.74471754,146.27,146.26,0.063]
[1745484018335,62.14442449,146.27,146.26,0.063]
[1745484020023,36.14442449,146.27,146.26,0.063]
[1745484020262,33.62654953,146.27,146.26,0.063]
[1745484021745,33.62654953,146.27,146.24,0.063]
[1745484021746,26.0,146.25,146.24,0.063]
[1745484022056,44.64964886,146.23,146.22,0.063]
[1745484022256,93.46625648,146.23,146.22,0.063]
[1745484022456,228.66625648,146.23,146.22,0.063]
[1745484022651,154.84964886,146.22,146.2,0.063]
[1745484022829,33.62654953,146.21,146.2,0.063]
[1745484024579,44.64964886,146.18,146.17,0.063]
[1745484024745,59.04935581,146.18,146.17,0.063]
[1745484024939,59.62654953,146.18,146.17,0.063]
[1745484025157,80.56715648,146.18,146.17,0.063]
[1745484026344,18.64964886,146.17,146.13,0.063]
[1745484026662,67.46625648,146.16,146.13,0.063]
[1745484029981,38.66684258,146.16,146.13,0.063]
[1745484030149,53.06654953,146.16,146.13,0.063]
[1745484030471,79.06654953,146.16,146.13,0.063]
[1745484031471,67.46625648,146.16,146.13,0.063]
[1745484031653,202.66625648,146.16,146.13,0.063]
[1745484031848,202.08906276,146.16,146.13,0.063]
[1745484032471,173.28964886,146.16,146.13,0.063]
[1745484032668,187.68935581,146.16,146.13,0.063]
[1745484033676,202.08906276,146.16,146.13,0.063]
[1745484033862,66.88906276,146.16,146.13,0.063]
[1745484034060,202.66625648,146.16,146.13,0.063]
[1745484034269,66.88906276,146.16,146.13,0.063]
[1745484034461,202.66625648,146.16,146.13,0.063]
[1745484034673,202.08906276,146.16,146.13,0.063]
[1745484034998,78.48935581,146.16,146.13,0.063]
[1745484035161,79.06654953,146.16,146.13,0.063]
[1745484035859,44.64964886,146.14,146.13,0.063]
[1745484036179,59.62654953,146.14,146.13,0.063]
[1745484038380,45.22684258,146.14,146.13,0.063]
[1745484038585,59.62654953,146.14,146.13,0.063]
[1745484038782,0.57719372,146.14,146.13,0.063]
[1745484039375,14.97690067,146.14,146.13,0.063]
[1745484040093,40.97690067,146.14,146.13,0.063]
[1745484040271,26.57719372,146.14,146.13,0.063]
[1745484040467,40.97690067,146.14,146.13,0.063]
[1745484040681,59.62654953,146.14,146.13,0.063]
[1745484042473,26.57719372,146.14,146.13,0.063]
[1745484042794,40.97690067,146.14,146.13,0.063]
[1745484042991,26.57719372,146.14,146.13,0.063]
[1745484043190,40.97690067,146.14,146.13,0.063]
[1745484044891,59.62654953,146.14,146.13,0.063]
[1745484045088,33.62654953,146.14,146.13,0.063]
[1745484047573,18.64964886,146.12,146.11,0.063]
[1745484047800,168.82654953,146.12,146.11,0.063]
[1745484048005,33.04935581,146.12,146.11,0.063]
[1745484048303,168.82654953,146.12,146.11,0.063]
[1745484048482,168.24935581,146.12,146.11,0.063]
[1745484048685,33.04935581,146.12,146.11,0.063]
[1745484048896,33.62654953,146.12,146.11,0.063]
[1745484049287,168.82654953,146.12,146.11,0.063]
[1745484049488,168.24935581,146.12,146.11,0.063]
[1745484049716,33.04935581,146.12,146.11,0.063]
[1745484049911,18.64964886,146.08,146.02,1.6352]
[1745484050097,52.36654953,146.08,146.02,1.6352]
[1745484051814,52.36654953,146.08,146.0,0.03]
[1745484052317,18.64964886,146.04,146.0,0.03]
[1745484052614,33.62654953,146.04,146.0,0.03]
[1745484053702,19.22684258,146.04,146.0,0.03]
[1745484053897,33.62654953,146.04,146.0,0.03]
[1745484054305,19.22684258,146.04,146.0,0.03]
[1745484054512,33.62654953,146.04,146.0,0.03]
[1745484055431,19.22684258,146.04,146.0,0.03]
[1745484055616,33.62654953,146.04,146.0,0.03]
[1745484055821,19.22684258,146.04,146.0,14.42970695]
[1745484056128,0.57719372,146.04,146.01,14.39970695]
[1745484056292,26.0,146.04,146.01,14.39970695]
[1745484056618,14.97690067,146.05,146.0,14.42970695]
[1745484057317,14.97690067,146.05,146.02,14.39970695]
[1745484057318,0.57719372,146.05,146.02,14.39970695]
[1745484057539,0.57719372,146.05,146.0,0.03]
[1745484057724,40.39970695,146.04,145.98,0.7025]
[1745484057899,0.57719372,146.03,146.0,14.39970695]
[1745484058100,18.74,146.02,145.99,14.39970695]
[1745484059004,18.74,146.02,146.0,14.39970695]
[1745484059196,18.74,146.02,146.01,14.39970695]
[1745484059599,18.74,146.02,145.98,0.7025]
[1745484059921,18.74,146.02,145.99,14.39970695]
[1745484060127,0.57719372,146.01,145.99,14.39970695]
[1745484060422,0.57719372,146.01,145.98,15.10220695]
[1745484060826,0.57719372,146.01,145.98,0.7025]
[1745484061010,14.97690067,146.01,145.98,0.7025]
[1745484062001,14.39970695,145.99,145.98,0.7025]
[1745484062214,14.97690067,145.99,145.97,0.03]
[1745484062731,14.39970695,145.98,145.97,0.03]
[1745484063033,33.04935581,145.98,145.97,0.03]
[1745484063336,59.04935581,145.98,145.97,0.03]
[1745484063926,33.04935581,145.98,145.97,0.03]
[1745484064116,33.62654953,145.98,145.97,0.03]
[1745484064426,0.57719372,146.0,145.97,14.42970695]
[1745484065115,0.57719372,146.01,145.97,16.00610695]
[1745484065320,0.57719372,146.01,145.97,6.01610695]
[1745484065933,0.57719372,146.01,145.97,1.5764]
[1745484066114,14.97690067,146.01,145.97,1.5764]
[1745484066314,14.97690067,146.01,145.97,15.97610695]
[1745484066508,14.97690067,146.01,145.97,1.5764]
[1745484066509,14.39970695,146.0,145.97,1.5764]
[1745484066730,14.97690067,145.99,145.97,1.5764]
[1745484067637,18.74,145.98,145.97,1.5764]
[1745484068214,18.74,145.98,145.97,15.97610695]
[1745484068520,18.74,145.98,145.97,22.23200695]
[1745484069040,14.39970695,146.02,145.97,22.23200695]
[1745484069244,18.76,146.01,145.98,14.39970695]
[1745484069819,18.76,146.01,145.97,7.8323]
[1745484070021,18.76,146.01,145.98,14.39970695]
[1745484070735,18.76,146.01,145.99,14.39970695]
[1745484071330,18.76,146.01,145.97,7.8323]
[1745484071522,18.76,146.01,145.97,1.5764]
[1745484071523,14.97690067,146.0,145.97,1.5764]
[1745484071728,33.15970695,146.01,145.97,1.5764]
[1745484072039,18.76,146.01,145.97,15.97610695]
[1745484072223,18.76,146.01,145.99,14.39970695]
[1745484072921,18.76,146.01,145.98,14.39970695]
[1745484073336,18.76,146.01,146.0,14.39970695]
[1745484073943,18.76,146.01,145.97,1.5764]
[1745484074124,18.76,146.01,146.0,14.39970695]
[1745484075430,235.0,146.06,146.0,20.63230695]
[1745484075629,18.44,146.05,146.03,14.39970695]
[1745484075919,18.44,146.05,146.04,14.39970695]
[1745484076245,235.0,146.06,146.04,1.5807]
[1745484076950,0.57719372,146.05,146.0,7.8133]
[1745484077134,14.97690067,146.05,146.0,22.21300695]
[1745484077447,0.57719372,146.05,146.01,14.39970695]
[1745484077648,14.97690067,146.05,146.0,7.8133]
[1745484077815,14.97690067,146.05,146.0,22.21300695]
[1745484078020,0.57719372,146.05,146.01,14.39970695]
[1745484078221,235.0,146.06,146.02,14.39970695]
[1745484078725,14.97690067,146.05,146.0,7.8133]
[1745484079047,14.39970695,146.03,146.0,1.5807]
[1745484079549,0.57719372,146.02,146.0,1.5807]
[1745484079748,32.83970695,146.01,145.96,1.6634]
[1745484080068,32.83970695,146.01,145.96,16.06310695]
[1745484080232,18.44,146.01,145.97,14.39970695]
[1745484080544,19.01719372,146.01,145.96,1.6634]
[1745484080740,33.41690067,146.01,145.96,1.6634]
[1745484081135,14.39970695,146.0,145.96,1.6634]
[1745484081349,14.97690067,145.99,145.96,1.6634]
[1745484081546,14.97690067,146.0,145.96,1.6634]
[1745484081723,0.57719372,146.0,145.97,14.39970695]
[1745484082041,18.44,146.01,145.97,14.39970695]
[1745484082250,18.44,146.01,145.99,14.39970695]
[1745484082625,18.44,146.01,146.0,14.39970695]
[1745484082929,253.44,146.06,146.0,46.84640695]
[1745484083127,253.44,146.06,146.05,14.39970695]
[1745484083353,253.44,146.06,146.04,14.39970695]
[1745484083559,253.44,146.06,146.02,1.651]
[1745484083730,253.44,146.06,146.04,14.39970695]
[1745484084281,253.44,146.06,146.03,14.39970695]
[1745484084581,253.44,146.06,146.04,14.39970695]
[1745484085486,0.063,146.07,146.05,14.39970695]
[1745484085659,0.063,146.07,146.06,15.76883687]
[1745484085978,0.063,146.07,146.04,6.84736261]
[1745484085979,0.063,146.07,146.04,1.36878334]
[1745484086161,0.063,146.07,146.05,14.39970695]
[1745484086676,18.503,146.07,146.02,1.651]
[1745484086879,18.503,146.07,146.05,14.39970695]
[1745484087461,18.503,146.07,146.04,14.39970695]
[1745484088879,18.503,146.07,146.02,1.651]
[1745484089092,33.47990067,146.07,146.02,16.05070695]
[1745484089294,14.39970695,146.06,146.02,16.05070695]
[1745484089477,33.47990067,146.07,146.03,14.39970695]
[1745484089661,19.08019372,146.07,146.03,14.39970695]
[1745484089856,19.08019372,146.07,146.04,14.39970695]
[1745484090157,18.503,146.07,146.04,14.39970695]
[1745484090471,18.503,146.07,146.05,14.39970695]
[1745484091194,18.503,146.07,146.06,14.39970695]
[1745484091594,0.063,146.07,146.06,14.39970695]
[1745484092491,0.063,146.07,146.06,33.04935581]
[1745484092675,18.503,146.12,146.07,18.64964886]
[1745484092988,18.503,146.12,146.11,14.39970695]
[1745484093407,0.063,146.12,146.11,14.39970695]
[1745484094190,253.53472975,146.16,146.11,14.39970695]
[1745484094397,253.53472975,146.16,146.13,14.39970695]
[1745484096198,253.53472975,146.16,146.15,14.39970695]
[1745484096371,253.53472975,146.16,146.14,14.39970695]
[1745484097493,253.53472975,146.16,146.1,25.49415046]
[1745484097703,18.44,146.16,146.15,14.39970695]
[1745484099405,18.44,146.16,146.11,1.36837692]
[1745484099711,18.44,146.16,146.13,14.39970695]
[1745484099877,18.44,146.16,146.14,14.39970695]
[1745484100396,18.44,146.16,146.1,46.01805532]
[1745484100766,18.44,146.16,146.13,14.39970695]
[1745484101612,18.44,146.16,146.1,27.36840646]
[1745484101775,14.97690067,146.15,146.11,14.39970695]
[1745484102084,32.83970695,146.16,146.12,14.39970695]
[1745484102490,18.44,146.16,146.12,14.39970695]
[1745484102679,18.44,146.16,146.09,1.5944]